fUST/lending_fUST_20250713
["ID","MTS","AMOUNT","RATE_DAILY","PERIOD"]
[371530242,1752339056568,-460.0,0.00018082,2]
[371530244,1752339056577,-460.0,0.00018082,2]
[371530246,1752339056586,-594.72,0.00018082,2]
[371530249,1752339056597,-460.0,0.00018082,2]
[371530250,1752339056606,-460.0,0.00018082,2]
[371530253,1752339056616,-1010.33,0.00018082,2]
[371530254,1752339056625,-460.0,0.00018082,2]
[371530256,1752339056634,-460.0,0.00018082,2]
[371530258,1752339056643,-460.0,0.00018082,2]
[371530260,1752339056652,-2088.38,0.00018082,2]
[371530263,1752339056667,-2151.05,0.00018082,2]
[371530265,1752339056676,-460.0,0.00018082,2]
[371530267,1752339056686,-460.0,0.00018082,2]
[371530269,1752339056695,-3488.55,0.00018082,2]
[371530271,1752339056706,-460.0,0.00018082,2]
[371530273,1752339056715,-460.0,0.00018082,2]
[371530275,1752339056724,-2850.9,0.00018082,2]
[371530277,1752339056736,-460.0,0.00018082,2]
[371530279,1752339056745,-460.0,0.00018082,2]
[371530281,1752339056754,-538.24,0.00018082,2]
[371530283,1752339056766,-658.41,0.00018082,2]
[371530285,1752339056775,-460.0,0.00018082,2]
[371530287,1752339056784,-460.0,0.00018082,2]
[371530289,1752339056794,-460.0,0.00018082,2]
[371530291,1752339056803,-849.11,0.00018082,2]
[371530293,1752339056812,-460.0,0.00018082,2]
[371530295,1752339056821,-460.0,0.00018082,2]
[371530297,1752339056830,-460.0,0.00018082,2]
[371530299,1752339056840,-460.0,0.00018082,2]
[371530301,1752339056849,-460.0,0.00018082,2]
[371530303,1752339056859,-460.0,0.00018082,2]
[371530305,1752339056868,-460.0,0.00018082,2]
[371530307,1752339056877,-598.24854923,0.00018082,2]
[371530309,1752339056887,-587.22400294,0.00018082,2]
[371530311,1752339056896,-1149.94,0.00018082,2]
[371530313,1752339056905,-460.0,0.00018082,2]
[371530315,1752339056915,-460.0,0.00018082,2]
[371530317,1752339056924,-764.22,0.00018082,2]
[371530319,1752339056933,-178.053576,0.00018116,2]
[371530321,1752339056942,-2034.99919285,0.00018141,2]
[371530323,1752339056951,-178.053576,0.00018198,2]
[371530325,1752339056960,-178.053576,0.0001828,2]
[371530327,1752339056970,-214.25614385,0.00018302,2]
[371530329,1752339056979,-215.38668925,0.00018302,2]
[371530331,1752339056988,-160.0,0.00018302,2]
[371530333,1752339056998,-230.64269914,0.00018302,2]
[371530335,1752339057008,-160.0,0.00018302,2]
[371530337,1752339057017,-838.37930271,0.00018302,2]
[371530339,1752339057027,-160.0,0.00018302,2]
[371530341,1752339057037,-500.0,0.00018356,2]
[371530343,1752339057046,-460.0,0.00018356,2]
[371530345,1752339057055,-468.36,0.00018356,2]
[371530347,1752339057065,-489.92972845,0.00018356,2]
[371530349,1752339057075,-460.0,0.00018356,2]
[371530351,1752339057084,-460.0,0.00018356,2]
[371530353,1752339057093,-460.0,0.00018356,2]
[371530356,1752339057103,-460.0,0.00018356,2]
[371530358,1752339057113,-460.0,0.00018356,2]
[371530359,1752339057122,-460.0,0.00018356,2]
[371530362,1752339057132,-460.0,0.00018356,2]
[371530364,1752339057141,-460.0,0.00018356,2]
[371530366,1752339057150,-460.0,0.00018356,2]
[371530367,1752339057160,-460.0,0.00018356,2]
[371530370,1752339057169,-460.0,0.00018356,2]
[371530372,1752339057179,-460.0,0.00018356,2]
[371530374,1752339057188,-460.0,0.00018356,2]
[371530376,1752339057198,-460.0,0.00018356,2]
[371530378,1752339057207,-550.87,0.00018356,2]
[371530380,1752339057217,-460.0,0.00018356,2]
[371530382,1752339057226,-460.0,0.00018356,2]
[371530384,1752339057236,-460.0,0.00018356,2]
[371530386,1752339057246,-460.0,0.00018356,2]
[371530388,1752339057255,-646.89,0.00018356,2]
[371530389,1752339057265,-460.0,0.00018356,2]
[371530391,1752339057275,-460.0,0.00018356,2]
[371530394,1752339057285,-460.0,0.00018356,2]
[371530395,1752339057294,-573.66,0.00018356,2]
[371530397,1752339057303,-460.0,0.00018356,2]
[371530399,1752339057313,-460.0,0.00018356,2]
[371530401,1752339057322,-460.0,0.00018356,2]
[371530403,1752339057332,-460.0,0.00018356,2]
[371530405,1752339057342,-460.0,0.00018356,2]
[371530407,1752339057352,-460.0,0.00018356,2]
[371530409,1752339057362,-460.0,0.00018356,2]
[371530411,1752339057372,-460.0,0.00018356,2]
[371530413,1752339057381,-635.22,0.00018356,2]
[371530415,1752339057390,-460.0,0.00018356,2]
[371530417,1752339057399,-544.52,0.00018356,2]
[371530419,1752339057409,-460.0,0.00018356,2]
[371530421,1752339057418,-460.0,0.00018356,2]
[371530423,1752339057427,-460.0,0.00018356,2]
[371530425,1752339057436,-460.0,0.00018356,2]
[371530427,1752339057445,-460.0,0.00018356,2]
[371530429,1752339057455,-623.67,0.00018356,2]
[371530431,1752339057464,-5412.1,0.00018356,2]
[371530434,1752339057474,-460.0,0.00018356,2]
[371530435,1752339057483,-460.0,0.00018356,2]
[371530438,1752339057493,-683.41,0.00018356,2]
[371530440,1752339057503,-460.0,0.00018356,2]
[371530441,1752339057512,-460.0,0.00018356,2]
[371530443,1752339057521,-1187.86,0.00018356,2]
[371530445,1752339057530,-460.0,0.00018356,2]
[371530448,1752339057540,-460.0,0.00018356,2]
[371530450,1752339057549,-460.0,0.00018356,2]
[371530452,1752339057558,-460.0,0.00018356,2]
[371530454,1752339057568,-1123.48,0.00018356,2]
[371530456,1752339057577,-2621.56,0.00018356,2]
[371530458,1752339057586,-682.03,0.00018356,2]
[371530459,1752339057595,-460.0,0.00018356,2]
[371530461,1752339057605,-460.0,0.00018356,2]
[371530464,1752339057615,-1297.92,0.00018356,2]
[371530466,1752339057625,-460.0,0.00018356,2]
[371530468,1752339057635,-460.0,0.00018356,2]
[371530469,1752339057645,-460.0,0.00018356,2]
[371530471,1752339057654,-460.0,0.00018356,2]
[371530473,1752339057667,-460.0,0.00018356,2]
[371530476,1752339057677,-460.0,0.00018356,2]
[371530478,1752339057686,-460.0,0.00018356,2]
[371530480,1752339057695,-1030.17,0.00018356,2]
[371530482,1752339057704,-460.0,0.00018356,2]
[371530484,1752339057714,-460.0,0.00018356,2]
[371530486,1752339057723,-460.0,0.00018356,2]
[371530488,1752339057733,-1957.07,0.00018356,2]
[371530490,1752339057742,-1236.38,0.00018356,2]
[371530492,1752339057754,-569.09,0.00018356,2]
[371530494,1752339057764,-463.53,0.00018356,2]
[371530496,1752339057773,-460.0,0.00018356,2]
[371530497,1752339057783,-471.39,0.00018356,2]
[371530499,1752339057793,-460.0,0.00018356,2]
[371530502,1752339057803,-460.0,0.00018356,2]
[371530504,1752339057812,-461.54,0.00018356,2]
[371530506,1752339057822,-539.54,0.00018356,2]
[371530507,1752339057832,-460.0,0.00018356,2]
[371530509,1752339057842,-460.0,0.00018356,2]
[371530511,1752339057851,-460.0,0.00018356,2]
[371530513,1752339057861,-460.0,0.00018356,2]
[371530515,1752339057870,-460.0,0.00018356,2]
[371530517,1752339057879,-594.72,0.00018356,2]
[371530519,1752339057889,-460.0,0.00018356,2]
[371530521,1752339057898,-460.0,0.00018356,2]
[371530523,1752339057908,-1010.33,0.00018356,2]
[371530525,1752339057917,-460.0,0.00018356,2]
[371530527,1752339057926,-460.0,0.00018356,2]
[371530530,1752339057936,-460.0,0.00018356,2]
[371530532,1752339057946,-2088.38,0.00018356,2]
[371530534,1752339057956,-2151.05,0.00018356,2]
[371530536,1752339057966,-460.0,0.00018356,2]
[371530538,1752339057976,-460.0,0.00018356,2]
[371530540,1752339057985,-3488.55,0.00018356,2]
[371530542,1752339057995,-460.0,0.00018356,2]
[371530544,1752339058004,-460.0,0.00018356,2]
[371530546,1752339058014,-2850.9,0.00018356,2]
[371530548,1752339058023,-460.0,0.00018356,2]
[371530550,1752339058032,-460.0,0.00018356,2]
[371530552,1752339058042,-538.24,0.00018356,2]
[371530554,1752339058051,-658.41,0.00018356,2]
[371530556,1752339058061,-460.0,0.00018356,2]
[371530558,1752339058069,-460.0,0.00018356,2]
[371530560,1752339058079,-460.0,0.00018356,2]
[371530562,1752339058088,-849.11,0.00018356,2]
[371530564,1752339058097,-460.0,0.00018356,2]
[371530566,1752339058107,-460.0,0.00018356,2]
[371530568,1752339058117,-460.0,0.00018356,2]
[371530570,1752339058126,-460.0,0.00018356,2]
[371530572,1752339058135,-460.0,0.00018356,2]
[371530573,1752339058144,-460.0,0.00018356,2]
[371530588,1752339058153,-460.0,0.00018356,2]
[371530590,1752339058283,-1149.94,0.00018356,2]
[371530592,1752339058292,-460.0,0.00018356,2]
[371530593,1752339058302,-460.0,0.00018356,2]
[371530594,1752339058311,-178.053576,0.00018362,2]
[371530595,1752339058320,-2034.99919285,0.00018383,2]
[371530596,1752339058330,-1500.0,0.000184,2]
[371530597,1752339058339,-1500.0,0.000184,2]
[371530598,1752339058348,-1500.0,0.00018419,2]
[371530599,1752339058358,-1500.0,0.00018419,2]
[371530600,1752339058368,-178.053576,0.00018444,2]
[371530601,1752339058377,-178.053576,0.00018526,2]
[371530602,1752339058386,-178.053576,0.00018608,2]
[371530603,1752339058395,-2034.99919285,0.00018624,2]
[371530604,1752339058404,-629.83270293,0.0001863,2]
[371530605,1752339058413,-460.0,0.0001863,2]
[371530606,1752339058422,-468.36,0.0001863,2]
[371530607,1752339058431,-460.0,0.0001863,2]
[371530608,1752339058440,-460.0,0.0001863,2]
[371530609,1752339058450,-460.0,0.0001863,2]
[371530610,1752339058459,-460.0,0.0001863,2]
[371530611,1752339058469,-460.0,0.0001863,2]
[371530613,1752339058478,-460.0,0.0001863,2]
[371530615,1752339058489,-460.0,0.0001863,2]
[371530617,1752339058499,-274.56584994,0.0001863,2]
[371530619,1752339058508,-460.0,0.0001863,2]
[371530621,1752339058521,-460.0,0.0001863,2]
[371530623,1752339058531,-460.0,0.0001863,2]
[371530625,1752339058540,-460.0,0.0001863,2]
[371530627,1752339058549,-550.87,0.0001863,2]
[371530629,1752339058558,-266.62463028,0.0001863,2]
[371530631,1752339058569,-460.0,0.0001863,2]
[371530633,1752339058578,-460.0,0.0001863,2]
[371530635,1752339058588,-460.0,0.0001863,2]
[371530637,1752339058597,-646.89,0.0001863,2]
[371530638,1752339058606,-460.0,0.0001863,2]
[371530640,1752339058616,-460.0,0.0001863,2]
[371530643,1752339058626,-573.66,0.0001863,2]
[371530645,1752339058635,-460.0,0.0001863,2]
[371530647,1752339058645,-460.0,0.0001863,2]
[371530649,1752339058654,-460.0,0.0001863,2]
[371530650,1752339058667,-460.0,0.0001863,2]
[371530652,1752339058676,-460.0,0.0001863,2]
[371530655,1752339058685,-460.0,0.0001863,2]
[371530656,1752339058696,-460.0,0.0001863,2]
[371530659,1752339058706,-635.22,0.0001863,2]
[371530661,1752339058716,-460.0,0.0001863,2]
[371530663,1752339058725,-460.0,0.0001863,2]
[371530665,1752339058735,-460.0,0.0001863,2]
[371530666,1752339058745,-460.0,0.0001863,2]
[371530669,1752339058755,-460.0,0.0001863,2]
[371530670,1752339058768,-623.67,0.0001863,2]
[371530672,1752339058778,-5412.1,0.0001863,2]
[371530675,1752339058787,-460.0,0.0001863,2]
[371530676,1752339058798,-460.0,0.0001863,2]
[371530678,1752339058807,-683.41,0.0001863,2]
[371530680,1752339058817,-460.0,0.0001863,2]
[371530682,1752339058827,-1187.86,0.0001863,2]
[371530684,1752339058836,-460.0,0.0001863,2]
[371530686,1752339058847,-460.0,0.0001863,2]
[371530688,1752339058857,-460.0,0.0001863,2]
[371530690,1752339058867,-1123.48,0.0001863,2]
[371530692,1752339058876,-2621.56,0.0001863,2]
[371530694,1752339058886,-682.03,0.0001863,2]
[371530696,1752339058897,-460.0,0.0001863,2]
[371530698,1752339058907,-460.0,0.0001863,2]
[371530700,1752339058917,-1297.92,0.0001863,2]
[371530702,1752339058926,-460.0,0.0001863,2]
[371530704,1752339058936,-460.0,0.0001863,2]
[371530706,1752339058945,-451.58564027,0.0001863,2]
[371530708,1752339058956,-460.0,0.0001863,2]
[371530710,1752339058965,-460.0,0.0001863,2]
[371530712,1752339058975,-460.0,0.0001863,2]
[371530714,1752339058984,-1030.17,0.0001863,2]
[371530716,1752339058993,-460.0,0.0001863,2]
[371530718,1752339059003,-460.0,0.0001863,2]
[371530720,1752339059012,-460.0,0.0001863,2]
[371530722,1752339059023,-1957.07,0.0001863,2]
[371530724,1752339059034,-1236.38,0.0001863,2]
[371530726,1752339059044,-569.09,0.0001863,2]
[371530729,1752339059054,-463.53,0.0001863,2]
[371530731,1752339059064,-460.0,0.0001863,2]
[371530733,1752339059074,-460.0,0.0001863,2]
[371530735,1752339059083,-460.0,0.0001863,2]
[371530737,1752339059093,-461.54,0.0001863,2]
[371530739,1752339059103,-539.54,0.0001863,2]
[371530741,1752339059112,-237.77885004,0.0001863,2]
[371530743,1752339059121,-460.0,0.0001863,2]
[371530745,1752339059131,-460.0,0.0001863,2]
[371530747,1752339059140,-460.0,0.0001863,2]
[371530748,1752339059150,-460.0,0.0001863,2]
[371530750,1752339059159,-594.72,0.0001863,2]
[371530752,1752339059169,-460.0,0.0001863,2]
[371530754,1752339059179,-1010.33,0.0001863,2]
[371530756,1752339059188,-460.0,0.0001863,2]
[371530759,1752339059198,-397.15698098,0.0001863,2]
[371530760,1752339059207,-460.0,0.0001863,2]
[371530762,1752339059217,-2088.38,0.0001863,2]
[371530765,1752339059227,-2151.05,0.0001863,2]
[371530767,1752339059237,-460.0,0.0001863,2]
[371530769,1752339059247,-460.0,0.0001863,2]
[371530771,1752339059257,-3488.55,0.0001863,2]
[371530773,1752339059268,-460.0,0.0001863,2]
[371530775,1752339059277,-460.0,0.0001863,2]
[371530777,1752339059286,-460.0,0.0001863,2]
[371530779,1752339059295,-2850.9,0.0001863,2]
[371530781,1752339059305,-538.24,0.0001863,2]
[371530783,1752339059314,-658.41,0.0001863,2]
[371530784,1752339059323,-460.0,0.0001863,2]
[371530786,1752339059332,-460.0,0.0001863,2]
[371530788,1752339059341,-460.0,0.0001863,2]
[371530790,1752339059352,-460.0,0.0001863,2]
[371530792,1752339059361,-849.11,0.0001863,2]
[371530794,1752339059371,-460.0,0.0001863,2]
[371530796,1752339059380,-460.0,0.0001863,2]
[371530798,1752339059389,-460.0,0.0001863,2]
[371530800,1752339059398,-460.0,0.0001863,2]
[371530802,1752339059407,-460.0,0.0001863,2]
[371530804,1752339059417,-460.0,0.0001863,2]
[371530806,1752339059427,-460.0,0.0001863,2]
[371530808,1752339059436,-1149.94,0.0001863,2]
[371530810,1752339059445,-460.0,0.0001863,2]
[371530812,1752339059455,-460.0,0.0001863,2]
[371530814,1752339059464,-178.053576,0.0001869,2]
[371530816,1752339059474,-621.13190756,0.00018713,2]
[371530818,1752339059484,-253.09215503,0.00018788,2]
[371530820,1752339059494,-2034.99919285,0.00018866,2]
[371530822,1752339059504,-151.0,0.000189,2]
[371530824,1752339059515,-679.9689388,0.000189,2]
[371530826,1752339059525,-303.50376891,0.000189,2]
[371530828,1752339059535,-468.36,0.00018904,2]
[371530830,1752339059546,-468.36,0.00018904,2]
[371530832,1752339059556,-333.55863944,0.00018904,2]
[371530834,1752339059566,-460.0,0.00018904,2]
[371530836,1752339059575,-460.0,0.00018904,2]
[371530838,1752339059586,-460.0,0.00018904,2]
[371530840,1752339059596,-460.0,0.00018904,2]
[371530842,1752339059606,-460.0,0.00018904,2]
[371530844,1752339059615,-460.0,0.00018904,2]
[371530846,1752339059625,-460.0,0.00018904,2]
[371530848,1752339059634,-460.0,0.00018904,2]
[371530850,1752339059644,-460.0,0.00018904,2]
[371530852,1752339059653,-550.87,0.00018904,2]
[371530854,1752339059668,-460.0,0.00018904,2]
[371530856,1752339059678,-460.0,0.00018904,2]
[371530858,1752339059688,-460.0,0.00018904,2]
[371530860,1752339059697,-646.89,0.00018904,2]
[371530862,1752339059707,-460.0,0.00018904,2]
[371530864,1752339059716,-460.0,0.00018904,2]
[371530866,1752339059726,-573.66,0.00018904,2]
[371530868,1752339059736,-460.0,0.00018904,2]
[371530870,1752339059746,-460.0,0.00018904,2]
[371530872,1752339059756,-460.0,0.00018904,2]
[371530874,1752339059768,-460.0,0.00018904,2]
[371530876,1752339059777,-460.0,0.00018904,2]
[371530878,1752339059787,-460.0,0.00018904,2]
[371530880,1752339059797,-635.22,0.00018904,2]
[371530882,1752339059807,-460.0,0.00018904,2]
[371530884,1752339059817,-460.0,0.00018904,2]
[371530886,1752339059826,-460.0,0.00018904,2]
[371530888,1752339059835,-460.0,0.00018904,2]
[371530890,1752339059845,-460.0,0.00018904,2]
[371530892,1752339059854,-623.67,0.00018904,2]
[371530894,1752339059863,-5412.1,0.00018904,2]
[371530896,1752339059873,-460.0,0.00018904,2]
[371530898,1752339059884,-460.0,0.00018904,2]
[371530900,1752339059893,-683.41,0.00018904,2]
[371530902,1752339059903,-460.0,0.00018904,2]
[371530904,1752339059912,-1187.86,0.00018904,2]
[371530906,1752339059923,-460.0,0.00018904,2]
[371530908,1752339059933,-460.0,0.00018904,2]
[371530910,1752339059942,-460.0,0.00018904,2]
[371530912,1752339059952,-1123.48,0.00018904,2]
[371530914,1752339059962,-2621.56,0.00018904,2]
[371530916,1752339059971,-460.0,0.00018904,2]
[371530918,1752339059982,-460.0,0.00018904,2]
[371530920,1752339059991,-682.03,0.00018904,2]
[371530922,1752339060001,-1297.92,0.00018904,2]
[371530924,1752339060010,-460.0,0.00018904,2]
[371530926,1752339060021,-460.0,0.00018904,2]
[371530928,1752339060032,-309.43847576,0.00018904,2]
[371530930,1752339060042,-460.0,0.00018904,2]
[371530932,1752339060051,-460.0,0.00018904,2]
[371530934,1752339060061,-1030.17,0.00018904,2]
[371530936,1752339060070,-460.0,0.00018904,2]
[371530938,1752339060080,-460.0,0.00018904,2]
[371530940,1752339060090,-460.0,0.00018904,2]
[371530942,1752339060099,-1957.07,0.00018904,2]
[371530944,1752339060109,-1236.38,0.00018904,2]
[371530946,1752339060120,-569.09,0.00018904,2]
[371530948,1752339060129,-463.53,0.00018904,2]
[371530950,1752339060139,-460.0,0.00018904,2]
[371530952,1752339060149,-460.0,0.00018904,2]
[371530954,1752339060159,-460.0,0.00018904,2]
[371530956,1752339060170,-461.54,0.00018904,2]
[371530958,1752339060181,-539.54,0.00018904,2]
[371530960,1752339060191,-460.0,0.00018904,2]
[371530962,1752339060202,-460.0,0.00018904,2]
[371530964,1752339060212,-460.0,0.00018904,2]
[371530966,1752339060223,-460.0,0.00018904,2]
[371530968,1752339060233,-594.72,0.00018904,2]
[371530970,1752339060243,-460.0,0.00018904,2]
[371530972,1752339060252,-1010.33,0.00018904,2]
[371530974,1752339060262,-460.0,0.00018904,2]
[371530976,1752339060273,-460.0,0.00018904,2]
[371530978,1752339060284,-2088.38,0.00018904,2]
[371530980,1752339060293,-2151.05,0.00018904,2]
[371530982,1752339060305,-460.0,0.00018904,2]
[371530984,1752339060316,-460.0,0.00018904,2]
[371530986,1752339060326,-3488.55,0.00018904,2]
[371530988,1752339060335,-460.0,0.00018904,2]
[371530990,1752339060345,-460.0,0.00018904,2]
[371530992,1752339060355,-575.57290686,0.00018904,2]
[371530994,1752339060365,-2850.9,0.00018904,2]
[371530996,1752339060375,-538.24,0.00018904,2]
[371530998,1752339060384,-658.41,0.00018904,2]
[371531000,1752339060394,-460.0,0.00018904,2]
[371531002,1752339060403,-460.0,0.00018904,2]
[371531004,1752339060412,-460.0,0.00018904,2]
[371531006,1752339060421,-460.0,0.00018904,2]
[371531008,1752339060431,-849.11,0.00018904,2]
[371531010,1752339060440,-460.0,0.00018904,2]
[371531012,1752339060449,-460.0,0.00018904,2]
[371531014,1752339060458,-460.0,0.00018904,2]
[371531016,1752339060468,-460.0,0.00018904,2]
[371531018,1752339060478,-460.0,0.00018904,2]
[371531020,1752339060487,-1149.94,0.00018904,2]
[371531022,1752339060496,-460.0,0.00018904,2]
[371531024,1752339060505,-460.0,0.00018904,2]
[371531025,1752339060515,-2000.0,0.00018948,2]
[371531027,1752339060525,-2000.0,0.00018948,2]
[371531029,1752339060534,-2000.0,0.00018967,2]
[371531031,1752339060543,-2000.0,0.00018967,2]
[371531033,1752339060553,-199.4,0.00019078,2]
[371531034,1752339060562,-303.50376891,0.00019089,2]
[371531035,1752339060573,-2034.99919285,0.00019107,2]
[371531036,1752339060584,-468.36,0.00019178,2]
[371531037,1752339060595,-151.0,0.00019178,2]
[371531038,1752339060606,-151.0,0.00019178,2]
[371531039,1752339060617,-460.0,0.00019178,2]
[371531041,1752339060626,-460.0,0.00019178,2]
[371531043,1752339060635,-460.0,0.00019178,2]
[371531045,1752339060644,-460.0,0.00019178,2]
[371531047,1752339060654,-460.0,0.00019178,2]
[371531049,1752339060668,-460.0,0.00019178,2]
[371531051,1752339060677,-460.0,0.00019178,2]
[371531053,1752339060686,-460.0,0.00019178,2]
[371531055,1752339060696,-550.87,0.00019178,2]
[371531057,1752339060706,-460.0,0.00019178,2]
[371531059,1752339060717,-460.0,0.00019178,2]
[371531061,1752339060727,-646.89,0.00019178,2]
[371531063,1752339060740,-460.0,0.00019178,2]
[371531065,1752339060751,-460.0,0.00019178,2]
[371531067,1752339060761,-573.66,0.00019178,2]
[371531069,1752339060774,-460.0,0.00019178,2]
[371531072,1752339060784,-460.0,0.00019178,2]
[371531074,1752339060794,-460.0,0.00019178,2]
[371531076,1752339060803,-500.0,0.00019178,2]
[371531078,1752339060813,-338.61259214,0.00019178,2]
[371531080,1752339060823,-460.0,0.00019178,2]
[371531082,1752339060832,-460.0,0.00019178,2]
[371531084,1752339060842,-460.0,0.00019178,2]
[371531086,1752339060851,-635.22,0.00019178,2]
[371531088,1752339060860,-460.0,0.00019178,2]
[371531101,1752339060981,-460.0,0.00019178,2]
[371531103,1752339060991,-460.0,0.00019178,2]
[371531104,1752339061000,-460.0,0.00019178,2]
[371531106,1752339061010,-460.0,0.00019178,2]
[371531108,1752339061022,-623.67,0.00019178,2]
[371531110,1752339061031,-5412.1,0.00019178,2]
[371531112,1752339061041,-460.0,0.00019178,2]
[371531114,1752339061051,-460.0,0.00019178,2]
[371531116,1752339061061,-683.41,0.00019178,2]
[371531118,1752339061070,-460.0,0.00019178,2]
[371531120,1752339061080,-1187.86,0.00019178,2]
[371531122,1752339061090,-460.0,0.00019178,2]
[371531124,1752339061102,-460.0,0.00019178,2]
[371531126,1752339061112,-460.0,0.00019178,2]
[371531128,1752339061122,-1123.48,0.00019178,2]
[371531130,1752339061133,-2621.56,0.00019178,2]
[371531132,1752339061142,-460.0,0.00019178,2]
[371531135,1752339061152,-515.47192529,0.00019178,2]
[371531137,1752339061162,-682.03,0.00019178,2]
[371531138,1752339061171,-1297.92,0.00019178,2]
[371531141,1752339061182,-174.85374271,0.00019178,2]
[371531143,1752339061191,-460.0,0.00019178,2]
[371531145,1752339061201,-1030.17,0.00019178,2]
[371531147,1752339061210,-460.0,0.00019178,2]
[371531149,1752339061220,-460.0,0.00019178,2]
[371531151,1752339061229,-460.0,0.00019178,2]
[371531153,1752339061239,-1957.07,0.00019178,2]
[371531155,1752339061249,-1236.38,0.00019178,2]
[371531157,1752339061258,-569.09,0.00019178,2]
[371531158,1752339061269,-463.53,0.00019178,2]
[371531160,1752339061279,-543.93316443,0.00019178,2]
[371531163,1752339061290,-460.0,0.00019178,2]
[371531165,1752339061300,-460.0,0.00019178,2]
[371531167,1752339061310,-461.54,0.00019178,2]
[371531169,1752339061319,-539.54,0.00019178,2]
[371531170,1752339061330,-460.0,0.00019178,2]
[371531172,1752339061340,-460.0,0.00019178,2]
[371531174,1752339061349,-460.0,0.00019178,2]
[371531176,1752339061359,-460.0,0.00019178,2]
[371531178,1752339061368,-594.72,0.00019178,2]
[371531180,1752339061377,-460.0,0.00019178,2]
[371531182,1752339061386,-1010.33,0.00019178,2]
[371531184,1752339061396,-460.0,0.00019178,2]
[371531186,1752339061405,-460.0,0.00019178,2]
[371531188,1752339061415,-2088.38,0.00019178,2]
[371531190,1752339061424,-2151.05,0.00019178,2]
[371531192,1752339061433,-460.0,0.00019178,2]
[371531194,1752339061442,-460.0,0.00019178,2]
[371531196,1752339061451,-3488.55,0.00019178,2]
[371531197,1752339061460,-460.0,0.00019178,2]
[371531199,1752339061470,-2850.9,0.00019178,2]
[371531201,1752339061479,-538.24,0.00019178,2]
[371531203,1752339061489,-658.41,0.00019178,2]
[371531205,1752339061499,-460.0,0.00019178,2]
[371531207,1752339061508,-460.0,0.00019178,2]
[371531209,1752339061517,-460.0,0.00019178,2]
[371531211,1752339061527,-460.0,0.00019178,2]
[371531213,1752339061536,-849.11,0.00019178,2]
[371531215,1752339061545,-460.0,0.00019178,2]
[371531217,1752339061555,-460.0,0.00019178,2]
[371531218,1752339061564,-460.0,0.00019178,2]
[371531221,1752339061575,-460.0,0.00019178,2]
[371531222,1752339061585,-581.95713535,0.00019178,2]
[371531224,1752339061594,-1149.94,0.00019178,2]
[371531226,1752339061604,-460.0,0.00019178,2]
[371531228,1752339061614,-460.0,0.00019178,2]
[371531230,1752339061623,-569.295119,0.00019178,2]
[371531232,1752339061634,-5000.0,0.00019178,2]
[371531234,1752339061643,-5000.0,0.00019178,2]
[371531236,1752339061653,-5000.0,0.00019178,2]